bitfinex/quotes_BTCUSD_20240712
["timestamp","ask_amount","ask_price","bid_price","bid_amount"]
[1720770573806,1e-08,57084.0,57083.0,0.014]
[1720770574291,0.52554001,57084.0,57083.0,0.014]
[1720770574529,1e-08,57084.0,57083.0,0.014]
[1720770574786,0.52554001,57084.0,57083.0,0.014]
[1720770575023,0.17518001,57084.0,57083.0,0.014]
[1720770575250,0.17518001,57084.0,57078.0,0.14821435]
[1720770575480,0.17518001,57084.0,57079.0,0.00306353]
[1720770575711,0.17518001,57084.0,57083.0,0.014]
[1720770575933,0.17518001,57084.0,57079.0,0.00306353]
[1720770576400,0.17518001,57084.0,57083.0,0.013]
[1720770576657,1e-08,57084.0,57083.0,0.013]
[1720770576885,1e-08,57084.0,57083.0,0.023]
[1720770577135,0.17518001,57084.0,57083.0,0.023]
[1720770577386,0.175185,57083.0,57079.0,0.00306353]
[1720770577624,0.175184,57083.0,57079.0,0.008]
[1720770577853,0.175179,57085.0,57080.0,0.00306353]
[1720770578812,0.358608,57088.0,57080.0,0.00306353]
[1720770578813,0.183438,57088.0,57081.0,0.1423]
[1720770579018,0.00827,57088.0,57082.0,0.00306353]
[1720770579225,0.175173,57087.0,57082.0,0.00306353]
[1720770579860,0.00827,57088.0,57084.0,0.08511435]
[1720770580065,0.00827,57088.0,57082.0,0.00656692]
[1720770580066,0.183439,57088.0,57082.0,0.00306353]
[1720770580279,0.183439,57088.0,57083.0,0.01]
[1720770580486,0.183439,57088.0,57084.0,0.00306353]
[1720770580892,0.00827,57088.0,57084.0,0.00306353]
[1720770581100,0.00827,57088.0,57084.0,0.003]
[1720770581516,0.183439,57088.0,57084.0,0.003]
[1720770581723,0.00827,57088.0,57082.0,0.01206353]
[1720770581952,0.00827,57088.0,57084.0,0.005]
[1720770582390,0.00827,57088.0,57084.0,0.015]
[1720770582606,0.00827,57088.0,57085.0,0.08861757]
[1720770582818,0.00827,57088.0,57086.0,0.237072]
[1720770584087,0.00827,57088.0,57086.0,0.0619]
[1720770584938,0.04897,57088.0,57084.0,0.00306353]
[1720770585146,0.04897,57088.0,57078.0,0.1442]
[1720770585147,0.350368,57083.0,57078.0,0.1442]
[1720770585357,0.175187,57082.0,57078.0,0.1442]
[1720770586091,0.350346,57087.0,57079.0,0.08511435]
[1720770586295,0.00827,57088.0,57080.0,0.00306353]
[1720770586296,0.350356,57085.0,57080.0,0.00306353]
[1720770586504,0.350361,57084.0,57080.0,0.00306353]
[1720770586712,0.175185,57083.0,57080.0,0.00306353]
[1720770586919,0.175185,57083.0,57079.0,0.00306353]
[1720770588179,0.175185,57083.0,57080.0,0.008]
[1720770588621,0.00100001,57084.0,57077.0,0.00306353]
[1720770588826,0.175198,57078.0,57075.0,0.00306353]
[1720770589036,0.525588,57079.0,57075.0,0.00306353]
[1720770589217,0.175202,57077.0,57075.0,0.00306353]
[1720770589441,0.175199,57078.0,57075.0,0.00306353]
[1720770589680,0.175199,57078.0,57074.0,0.1379]
[1720770589890,0.175199,57078.0,57074.0,0.1364]
[1720770590043,0.175199,57078.0,57075.0,0.014]
[1720770591469,0.175199,57078.0,57075.0,0.028]
[1720770591878,0.26316533,57079.0,57075.0,0.028]
[1720770592293,0.1752,57078.0,57075.0,0.028]
[1720770592922,0.1752,57078.0,57075.0,0.014]
[1720770593154,0.1752,57078.0,57075.0,0.028]
[1720770593353,0.1752,57078.0,57074.0,0.1364]
[1720770593772,0.1752,57078.0,57075.0,0.027]
[1720770594271,0.1752,57078.0,57075.0,0.014]
[1720770594449,0.350386,57080.0,57075.0,0.014]
[1720770594450,0.175196,57079.0,57075.0,0.014]
[1720770595601,0.00827,57088.0,57079.0,0.350391]
[1720770595826,0.00827,57088.0,57080.0,0.44499422]
[1720770595827,0.03966468,57087.0,57080.0,0.44499422]
[1720770596036,0.00827,57088.0,57081.0,0.12]
[1720770596258,0.00827,57088.0,57083.0,0.175181]
[1720770596471,0.00827,57088.0,57085.0,0.350354]
[1720770596680,0.00827,57088.0,57086.0,0.313073]
[1720770597990,0.00827,57088.0,57087.0,0.175171]
[1720770598218,0.00827,57088.0,57087.0,0.64901591]
[1720770598432,0.00827,57088.0,57087.0,0.175171]
[1720770598873,0.00827,57088.0,57086.0,0.1469]
[1720770599504,0.00827,57088.0,57086.0,0.1609]
[1720770599834,0.00827,57088.0,57086.0,0.1519]
[1720770600040,0.00827,57088.0,57087.0,0.009]
[1720770600648,0.00827,57088.0,57086.0,0.1519]
[1720770601060,0.00827,57088.0,57086.0,0.1609]
[1720770601271,0.00827,57088.0,57086.0,0.1469]
[1720770602721,0.00827,57088.0,57087.0,0.014]
[1720770603067,0.00827,57088.0,57086.0,0.1469]
[1720770603484,0.00827,57088.0,57086.0,0.1609]
[1720770603689,0.00827,57088.0,57086.0,0.1519]
[1720770603884,0.00827,57088.0,57087.0,0.009]
[1720770604083,0.00827,57088.0,57087.0,0.023]
[1720770604456,0.00827,57088.0,57087.0,0.014]
[1720770604637,0.00827,57088.0,57086.0,0.1379]
[1720770604905,0.00827,57088.0,57086.0,0.1469]
[1720770606138,0.00827,57088.0,57086.0,0.1519]
[1720770606585,0.00827,57088.0,57087.0,0.009]
[1720770607000,0.00827,57088.0,57086.0,0.1519]
[1720770607411,0.00827,57088.0,57086.0,0.1609]
[1720770607619,0.00827,57088.0,57086.0,0.1469]
[1720770607827,0.00827,57088.0,57087.0,0.014]
[1720770608420,0.00827,57088.0,57087.0,1.009855]
[1720770608684,0.00827,57088.0,57087.0,0.605113]
[1720770608870,0.00827,57088.0,57087.0,0.0796]
[1720770609283,0.00827,57088.0,57087.0,0.0656]
[1720770609692,0.00827,57088.0,57087.0,0.0746]
[1720770610287,0.00827,57088.0,57087.0,0.0886]
[1720770610490,0.00827,57088.0,57087.0,0.263771]
[1720770610693,0.00827,57088.0,57087.0,0.0886]
[1720770610867,0.00827,57088.0,57087.0,0.023]
[1720770610868,0.533774,57088.0,57087.0,0.023]
[1720770611069,0.92390772,57088.0,57087.0,0.023]
[1720770611500,1.27368594,57088.0,57087.0,0.023]
[1720770611696,1.39368594,57088.0,57087.0,0.023]
[1720770612340,1.52368659,57088.0,57087.0,0.023]
[1720770612554,1.39368594,57088.0,57087.0,0.023]
[1720770612970,1.39368594,57088.0,57087.0,0.014]
[1720770613399,1.39368594,57088.0,57078.0,0.000913]
[1720770613589,0.175194,57080.0,57078.0,0.000913]
[1720770615759,0.175194,57080.0,57078.0,0.001913]
[1720770616021,0.61028543,57087.0,57079.0,0.40380935]
[1720770616022,0.3051406,57087.0,57079.0,0.40380935]
[1720770616235,0.03967759,57086.0,57085.0,0.26029135]
[1720770616446,0.1299696,57087.0,57086.0,0.0664]
[1720770616865,0.1299696,57087.0,57086.0,0.1417]
[1720770617276,0.1299696,57087.0,57086.0,0.0664]
[1720770618899,0.1299696,57087.0,57086.0,0.241574]
[1720770619325,0.1299696,57087.0,57086.0,0.0774]
[1720770619521,0.1299696,57087.0,57086.0,0.252574]
[1720770619944,0.1299696,57087.0,57086.0,0.0774]
[1720770620171,0.1299696,57087.0,57086.0,1.02937]
[1720770620594,0.00827,57088.0,57087.0,0.175171]
[1720770621010,0.00827,57088.0,57086.0,0.503846]
[1720770621011,0.00827,57088.0,57086.0,0.328672]
[1720770621420,0.00827,57088.0,57086.0,0.342672]
[1720770621639,0.00827,57088.0,57086.0,0.1535]
[1720770622052,0.00827,57088.0,57087.0,0.014]
[1720770622255,0.00827,57088.0,57087.0,0.023]
[1720770622916,0.00827,57088.0,57087.0,0.014]
[1720770623541,0.00827,57088.0,57086.0,0.1515]
[1720770623744,0.00827,57088.0,57086.0,0.1565]
[1720770624572,0.00827,57088.0,57086.0,0.331674]
[1720770624776,0.00827,57088.0,57086.0,0.317674]
[1720770624957,0.00827,57088.0,57087.0,0.014]
[1720770625187,0.458571,57096.0,57087.0,0.023]
[1720770625390,0.03980641,57095.0,57088.0,0.00306353]
[1720770625616,0.458571,57096.0,57088.0,0.00306353]
[1720770625843,0.0398065,57094.0,57087.0,0.00306353]
[1720770626047,0.2149595,57093.0,57087.0,0.00306353]
[1720770626225,0.0398065,57092.0,57087.0,0.00306353]
[1720770626455,0.0398065,57091.0,57087.0,0.00306353]
[1720770626642,0.175153,57093.0,57087.0,0.00306353]
[1720770626868,0.03954818,57092.0,57087.0,0.00306353]
[1720770627068,0.03954818,57091.0,57086.0,0.317674]
[1720770627275,0.175153,57093.0,57086.0,0.317674]
[1720770627479,0.03954821,57092.0,57087.0,0.008]
[1720770627691,0.03954821,57091.0,57087.0,0.008]
[1720770627930,0.175153,57093.0,57087.0,0.008]
[1720770628153,0.03975495,57092.0,57086.0,0.317674]
[1720770628358,0.03975495,57091.0,57086.0,0.317674]
[1720770628613,0.175157,57092.0,57086.0,0.1505]
[1720770628828,0.175157,57092.0,57086.0,0.008]
[1720770628829,0.175171,57087.0,57086.0,0.008]
[1720770629038,0.68510765,57087.0,57086.0,0.008]
[1720770629255,1.28194965,57087.0,57086.0,0.008]
[1720770629465,1.41189864,57087.0,57086.0,0.008]
[1720770629676,1.76223024,57087.0,57086.0,0.008]
[1720770629891,0.175195,57079.0,57078.0,0.000913]
[1720770631187,0.525586,57079.0,57078.0,0.000913]
[1720770631631,0.5400229,57079.0,57078.0,0.000913]
[1720770632259,0.5400229,57079.0,57078.0,0.019913]
[1720770634210,0.92882348,57079.0,57078.0,0.019913]
[1720770634632,0.8904139,57079.0,57078.0,0.019913]
[1720770634875,0.92882491,57079.0,57078.0,0.019913]
[1720770635346,1.18921516,57079.0,57078.0,0.019913]
[1720770635563,2.39209716,57079.0,57078.0,0.019913]
[1720770635769,2.54793195,57079.0,57078.0,0.019913]
[1720770635978,2.39209716,57079.0,57078.0,0.019913]
[1720770636196,2.39209716,57079.0,57078.0,0.012913]
[1720770636625,2.23448406,57079.0,57078.0,0.013913]
[1720770636831,2.23448406,57079.0,57078.0,0.001913]
[1720770636832,2.19509716,57079.0,57078.0,0.001913]
[1720770637042,2.19509716,57079.0,57078.0,0.000913]
[1720770637043,2.19209716,57079.0,57078.0,0.000913]
[1720770637222,2.19609716,57079.0,57078.0,0.001913]
[1720770637453,2.30899314,57079.0,57078.0,0.001913]
[1720770637663,2.19209716,57079.0,57078.0,0.000913]
[1720770637879,1.84570616,57079.0,57078.0,0.000913]
[1720770638294,1.84170616,57079.0,57078.0,0.000913]
[1720770638504,1.84499123,57079.0,57078.0,0.00085896]
[1720770639137,1.84499123,57079.0,57078.0,0.00185896]
[1720770639391,1.84999123,57079.0,57078.0,0.00185896]
[1720770639790,1.60429123,57079.0,57078.0,0.00085896]
[1720770640004,1.15680023,57079.0,57078.0,0.00185896]
[1720770640797,1.03680023,57079.0,57078.0,0.00185896]
[1720770641166,0.06082323,57079.0,57078.0,0.06725896]
[1720770641411,0.06158547,57079.0,57078.0,0.06725896]
[1720770641620,0.06158471,57079.0,57078.0,0.06725896]
[1720770641822,0.0234369,57079.0,57078.0,0.06725896]
[1720770642316,0.06152617,57079.0,57078.0,0.06725896]
[1720770642533,0.1234369,57079.0,57078.0,0.06725896]
[1720770642749,0.1184369,57079.0,57078.0,0.06625896]
[1720770642996,0.15646525,57079.0,57078.0,0.06625896]
[1720770643219,0.15646525,57079.0,57078.0,0.07225896]
[1720770643431,0.1144369,57079.0,57078.0,0.07225896]
[1720770643666,0.0144369,57079.0,57078.0,0.25845696]
[1720770643894,0.00956936,57079.0,57078.0,0.07282597]
[1720770644132,0.00083,57083.0,57078.0,0.06625896]
[1720770644362,0.175192,57080.0,57079.0,0.00306353]
[1720770644591,0.18475836,57082.0,57079.0,0.00306353]
[1720770644837,0.17519,57081.0,57079.0,0.00306353]
[1720770645080,0.18475936,57081.0,57079.0,0.00306353]
[1720770645599,0.00956936,57081.0,57079.0,0.00306353]
[1720770646073,0.175188,57082.0,57079.0,0.00306353]
[1720770646327,0.175188,57082.0,57078.0,0.07225896]
[1720770646328,0.00956936,57080.0,57078.0,0.06625896]
[1720770646560,0.00956936,57079.0,57078.0,0.06625896]
[1720770646803,0.00956936,57079.0,57078.0,0.67696831]
[1720770647062,0.00083,57083.0,57082.0,0.317986]
[1720770647799,0.00083,57083.0,57082.0,0.32104953]
[1720770648309,0.00083,57083.0,57082.0,0.67242253]
[1720770648557,0.00083,57083.0,57082.0,1.12629872]
[1720770648791,0.00083,57083.0,57082.0,1.69360819]
[1720770649467,0.00083,57083.0,57082.0,1.690105]
[1720770649691,0.00083,57083.0,57082.0,1.689105]
[1720770649920,0.00083,57083.0,57082.0,1.708105]
[1720770650339,0.00083,57083.0,57082.0,1.696105]
[1720770650546,0.00083,57083.0,57082.0,1.689105]
[1720770650758,0.00083,57083.0,57082.0,1.703105]
[1720770650963,0.00083,57083.0,57082.0,1.497105]
[1720770651385,0.00083,57083.0,57082.0,1.483105]
[1720770651594,0.00083,57083.0,57082.0,0.1428]
[1720770651802,0.00083,57083.0,57082.0,0.1568]
[1720770652011,0.00083,57083.0,57082.0,0.1708]
[1720770652663,0.00083,57083.0,57082.0,0.17386353]
[1720770653082,0.00083,57083.0,57082.0,0.1708]
[1720770653288,0.00083,57083.0,57082.0,0.1568]
[1720770653502,0.00083,57083.0,57082.0,0.33548926]
[1720770653930,0.00083,57083.0,57082.0,0.15986353]
[1720770654142,0.00083,57083.0,57082.0,0.1568]
[1720770654351,0.00083,57083.0,57082.0,0.1428]
[1720770654558,0.00083,57083.0,57082.0,0.1568]
[1720770654768,0.00083,57083.0,57082.0,0.1708]
[1720770655421,0.00083,57083.0,57082.0,0.028]
[1720770655422,0.5439805,57083.0,57082.0,0.028]
[1720770655644,0.876747,57083.0,57082.0,0.028]
[1720770655854,0.44186471,57083.0,57082.0,0.028]
[1720770656476,0.44186471,57083.0,57082.0,0.014]
[1720770656685,0.350361,57084.0,57082.0,0.014]
[1720770656686,0.2058,57088.0,57082.0,0.014]
[1720770656926,0.175175,57086.0,57083.0,0.0666]
[1720770657350,0.350321,57091.0,57084.0,0.083]
[1720770657566,0.175174,57086.0,57084.0,0.083]
[1720770658204,0.17518,57084.0,57083.0,0.0656]
[1720770658414,0.17518,57084.0,57082.0,0.003]
[1720770658627,0.175182,57084.0,57082.0,0.003]
[1720770659074,0.175177,57085.0,57082.0,0.003]
[1720770659917,0.175177,57085.0,57080.0,0.083]
[1720770659918,0.350329,57090.0,57081.0,0.00350344]
[1720770660152,0.350329,57090.0,57084.0,0.006]
[1720770660153,0.175165,57089.0,57084.0,0.006]
[1720770660362,0.23790944,57096.0,57085.0,0.0666]
[1720770660363,0.350306,57093.0,57085.0,0.0666]
[1720770660562,0.13782535,57092.0,57086.0,0.083]
[1720770660773,0.175159,57091.0,57087.0,0.00350305]
[1720770660991,0.175159,57091.0,57086.0,0.083]
[1720770661897,0.175159,57091.0,57086.0,0.092]
[1720770662348,0.175159,57091.0,57086.0,0.083]
[1720770662564,0.175159,57091.0,57086.0,0.094]
[1720770662782,0.175163,57090.0,57086.0,0.094]
[1720770663006,0.175163,57090.0,57086.0,0.015]
[1720770663007,0.175171,57087.0,57086.0,0.015]
[1720770663233,0.525513,57087.0,57086.0,0.015]
[1720770663454,0.525513,57087.0,57086.0,0.011]
[1720770663455,0.175171,57087.0,57086.0,0.011]
[1720770663884,0.175171,57087.0,57086.0,0.017]
[1720770664296,0.175171,57087.0,57085.0,0.0666]
[1720770664525,0.350373,57082.0,57081.0,0.0784]
[1720770664742,0.35135001,57086.0,57076.0,0.0646]
[1720770664743,0.175195,57079.0,57076.0,0.0646]
[1720770664963,0.875977,57079.0,57076.0,0.0646]
[1720770665839,0.525586,57079.0,57078.0,0.07875896]
[1720770666085,0.380968,57088.0,57080.0,0.17519]
[1720770666300,0.350332,57089.0,57081.0,0.17869131]
[1720770666301,0.175165,57089.0,57081.0,0.17869131]
[1720770666549,0.175165,57089.0,57082.0,0.14386353]
[1720770666550,0.1,57088.0,57082.0,0.14386353]
[1720770666760,0.1,57088.0,57083.0,0.00350331]
[1720770666961,0.1,57088.0,57083.0,0.00656684]
[1720770667190,0.351149,57091.0,57086.0,0.175173]
[1720770667191,0.00083,57091.0,57086.0,0.175173]
[1720770667429,0.00083,57091.0,57087.0,0.14500302]
[1720770668302,0.001,57088.0,57087.0,0.14500302]
[1720770668514,0.00083,57091.0,57087.0,0.1415]
[1720770668734,0.00183,57091.0,57087.0,0.1585]
[1720770670143,0.00183,57091.0,57087.0,0.1525]
[1720770670608,0.00183,57091.0,57087.0,0.16600302]
[1720770671087,0.00183,57091.0,57088.0,0.238466]
[1720770671360,0.00183,57091.0,57089.0,0.14730291]
[1720770671848,0.00183,57091.0,57089.0,0.32246691]
[1720770672095,0.00083,57091.0,57089.0,0.32246691]
[1720770672335,0.00083,57091.0,57090.0,0.175162]
[1720770672557,0.00183,57091.0,57090.0,0.175162]
[1720770672772,0.00083,57091.0,57089.0,0.32246689]
[1720770673050,0.00183,57091.0,57089.0,0.33346689]
[1720770673287,0.00183,57091.0,57090.0,0.73060035]
[1720770673532,0.00183,57091.0,57090.0,0.94021]
[1720770674291,0.00183,57091.0,57090.0,1.06021]
[1720770674899,0.00283,57091.0,57090.0,1.07121]
[1720770675514,0.00283,57091.0,57090.0,1.07721]
[1720770676830,0.00283,57091.0,57090.0,0.95721]
[1720770677037,0.00283,57091.0,57090.0,0.0814]
[1720770677662,0.00283,57091.0,57090.0,0.08490277]
[1720770678095,0.00283,57091.0,57090.0,0.61038877]
[1720770678492,0.00283,57091.0,57090.0,0.08490277]
[1720770678717,0.00283,57091.0,57090.0,0.0814]
[1720770680752,0.00283,57091.0,57090.0,0.256562]
[1720770680954,0.00283,57091.0,57090.0,0.26006488]
[1720770681370,0.35027,57099.0,57090.0,0.26006488]
[1720770681614,0.21187921,57098.0,57091.0,0.00306353]
[1720770681869,0.175134,57099.0,57091.0,0.00306353]
[1720770682063,0.03674195,57098.0,57092.0,0.175155]
[1720770682236,0.03674195,57097.0,57093.0,0.00306353]
[1720770682443,0.175134,57099.0,57093.0,0.00306353]
[1720770682644,0.03682465,57098.0,57093.0,0.00306353]
[1720770682844,0.21196465,57097.0,57091.0,0.00306353]
[1720770683048,0.175144,57096.0,57091.0,0.00306353]
[1720770683250,0.175144,57096.0,57092.0,0.002]
[1720770683487,0.175141,57097.0,57092.0,0.002]
[1720770684694,0.002,57097.0,57091.0,0.00306353]
[1720770684900,0.002,57097.0,57091.0,0.17822153]
[1720770685110,0.380932,57100.0,57094.0,0.00306353]
[1720770685318,0.03684024,57099.0,57094.0,0.00306353]
[1720770685527,0.002,57097.0,57094.0,0.00306353]
[1720770685967,0.380932,57100.0,57094.0,0.00306353]
[1720770686171,0.03696411,57099.0,57094.0,0.00306353]
[1720770686379,0.03696411,57098.0,57094.0,0.00306353]
[1720770686589,0.03696411,57097.0,57094.0,0.00306353]
[1720770686789,0.03693551,57096.0,57094.0,0.00306353]
[1720770686969,0.386932,57100.0,57094.0,0.00306353]
[1720770687208,0.036936,57099.0,57094.0,0.00306353]
[1720770687416,0.036936,57098.0,57094.0,0.00306353]
[1720770687627,0.181132,57100.0,57094.0,0.00306353]
[1720770687628,0.036936,57097.0,57094.0,0.00306353]
[1720770687830,0.036936,57096.0,57094.0,0.00306353]
[1720770688052,0.036936,57096.0,57094.0,0.18121253]
[1720770688264,0.004,57099.0,57098.0,0.175137]
[1720770688437,0.18439601,57105.0,57098.0,0.175137]
[1720770688641,0.1362673,57104.0,57098.0,0.175137]
[1720770688853,0.18439601,57105.0,57099.0,0.173133]
[1720770688854,0.0362673,57103.0,57099.0,0.173133]
[1720770689066,0.00828,57105.0,57099.0,0.00350232]
[1720770689275,0.00828,57105.0,57101.0,0.350255]
[1720770689480,0.00828,57105.0,57104.0,0.257619]
[1720770689685,0.05029825,57105.0,57104.0,0.0825]
[1720770690079,0.05029825,57105.0,57104.0,0.0785]
[1720770690921,0.04429825,57105.0,57104.0,0.0785]
[1720770692171,0.04429825,57105.0,57104.0,0.1025]
[1720770692376,0.04429825,57105.0,57104.0,0.1682]
[1720770693219,0.04429825,57105.0,57104.0,0.0897]
[1720770693650,0.21941425,57105.0,57104.0,0.0897]
[1720770693864,0.04429825,57105.0,57104.0,0.024]
[1720770694281,0.21941425,57105.0,57104.0,0.024]
[1720770694878,0.21837172,57105.0,57104.0,0.024]
[1720770695121,0.91883572,57105.0,57104.0,0.024]
[1720770695270,0.56860381,57105.0,57104.0,0.024]
[1720770695888,0.21837181,57105.0,57104.0,0.024]
[1720770696177,0.04325581,57105.0,57104.0,0.024]
[1720770698291,0.04325581,57105.0,57104.0,0.024913]
[1720770698292,0.21990636,57105.0,57104.0,0.024913]
[1720770699282,0.57013836,57105.0,57104.0,0.024913]
[1720770699900,0.21990636,57105.0,57104.0,0.024913]
[1720770701639,0.21918763,57105.0,57104.0,0.024913]
[1720770701843,0.04407163,57105.0,57104.0,0.024913]
[1720770703149,0.21918763,57105.0,57104.0,0.024913]
[1720770703568,0.04407163,57105.0,57104.0,0.024913]
[1720770705480,0.04453803,57105.0,57104.0,0.024913]
[1720770707588,0.21965403,57105.0,57104.0,0.024913]
[1720770708210,0.21904454,57105.0,57104.0,0.024913]
[1720770708452,0.2190448,57105.0,57104.0,0.024913]
[1720770709271,0.0439288,57105.0,57104.0,0.024913]
[1720770709691,0.2190448,57105.0,57104.0,0.024913]
[1720770711732,0.9195088,57105.0,57104.0,0.024913]
[1720770711913,0.5692768,57105.0,57104.0,0.024913]
[1720770712320,0.6892768,57105.0,57104.0,0.024913]
[1720770712525,0.9195088,57105.0,57104.0,0.024913]
[1720770712724,0.5692768,57105.0,57104.0,0.024913]
[1720770713346,0.9195088,57105.0,57104.0,0.024913]
[1720770713555,1.4708408,57105.0,57104.0,0.024913]
[1720770713759,2.0413408,57105.0,57104.0,0.024913]
[1720770713960,2.2413408,57105.0,57104.0,0.024913]
[1720770714167,2.0413408,57105.0,57104.0,0.024913]
[1720770714623,2.0413408,57105.0,57104.0,0.014913]
[1720770715099,2.007692,57105.0,57104.0,0.014913]
[1720770715306,2.04307693,57105.0,57104.0,0.014913]
[1720770715514,2.16351925,57105.0,57104.0,0.014913]
[1720770715729,2.19890004,57105.0,57104.0,0.000913]
[1720770716157,2.19890004,57105.0,57104.0,0.003913]
[1720770716362,2.13890004,57105.0,57104.0,0.003913]
[1720770716572,2.19890004,57105.0,57104.0,0.003913]
[1720770717406,2.13890004,57105.0,57104.0,0.003913]
[1720770717620,1.87890004,57105.0,57104.0,0.003913]
[1720770717825,1.02124079,57105.0,57104.0,0.003913]
[1720770718445,1.02177976,57105.0,57104.0,0.003913]
[1720770718653,0.67154776,57105.0,57104.0,0.003913]
[1720770719494,0.80145639,57105.0,57104.0,0.003913]
[1720770719746,0.22131576,57105.0,57104.0,0.003913]
[1720770721208,0.22145363,57105.0,57104.0,0.003913]
[1720770722501,1.11183343,57105.0,57104.0,0.003913]
[1720770722711,1.17183343,57105.0,57104.0,0.003913]
[1720770723141,1.05183343,57105.0,57104.0,0.003913]
[1720770723575,0.92191763,57105.0,57104.0,0.003913]
[1720770724453,0.92135757,57105.0,57104.0,0.003913]
[1720770724700,1.40151626,57105.0,57104.0,0.003913]
[1720770724971,1.40151548,57105.0,57104.0,0.003913]
[1720770725906,1.27159126,57105.0,57104.0,0.003913]
[1720770726175,1.40152097,57105.0,57104.0,0.003913]
[1720770726420,1.27159126,57105.0,57104.0,0.003913]
[1720770727637,1.2714238,57105.0,57104.0,0.003913]
[1720770728523,0.9211918,57105.0,57104.0,0.003913]
[1720770728947,0.70094155,57105.0,57104.0,0.003913]
[1720770729151,0.5709598,57105.0,57104.0,0.003913]
[1720770729911,0.70094155,57105.0,57104.0,0.003913]
[1720770730356,0.70094155,57105.0,57104.0,0.068413]
[1720770731184,0.5709598,57105.0,57104.0,0.068413]
[1720770731852,0.9211918,57105.0,57104.0,0.068413]
[1720770732450,1.05119115,57105.0,57104.0,0.068413]
[1720770732807,0.9211918,57105.0,57104.0,0.068413]
[1720770733475,1.05119115,57105.0,57104.0,0.068413]
[1720770733649,1.05119858,57105.0,57104.0,0.068413]
[1720770733862,1.40143058,57105.0,57104.0,0.003913]
[1720770734061,1.2714238,57105.0,57104.0,0.003913]
[1720770734404,1.356092,57105.0,57104.0,0.003913]
[1720770734608,1.39122766,57105.0,57104.0,0.003913]
[1720770735085,1.27122766,57105.0,57104.0,0.003913]
[1720770737744,1.236092,57105.0,57104.0,0.003913]
[1720770738170,1.2714686,57105.0,57104.0,0.003913]
[1720770738346,1.236092,57105.0,57104.0,0.003913]
[1720770738564,1.25441357,57105.0,57104.0,0.003913]
[1720770738937,0.55394957,57105.0,57104.0,0.003913]
[1720770739144,0.55394957,57105.0,57104.0,0.069613]
[1720770739896,0.68394883,57105.0,57104.0,0.069613]
[1720770740228,0.7195283,57105.0,57104.0,0.069613]
[1720770740878,0.58952904,57105.0,57104.0,0.069613]
[1720770741115,0.7195283,57105.0,57104.0,0.069613]
[1720770741325,0.3692963,57105.0,57104.0,0.069613]
[1720770741535,0.06418104,57105.0,57104.0,0.151313]
[1720770742161,0.02860157,57105.0,57104.0,0.151313]
[1720770742370,0.06469395,57105.0,57104.0,0.151313]
[1720770742588,0.06468913,57105.0,57104.0,0.151313]
[1720770743720,0.06468913,57105.0,57104.0,0.326432]
[1720770744039,0.35846,57112.0,57105.0,0.1406]
[1720770744256,0.03741599,57111.0,57106.0,0.06386353]
[1720770744466,0.03641598,57110.0,57106.0,0.06386353]
[1720770744666,0.00100001,57111.0,57106.0,0.23897553]
[1720770744667,0.03641598,57109.0,57106.0,0.23897553]
[1720770744917,0.03641598,57108.0,57106.0,0.23897553]
[1720770745121,0.03641598,57107.0,57106.0,0.58920053]
[1720770745405,0.00827,57112.0,57106.0,0.41408853]
[1720770745621,0.00827,57112.0,57110.0,0.175099]
[1720770745622,0.03609019,57111.0,57110.0,0.175099]
[1720770745837,0.03609019,57111.0,57110.0,0.236499]
[1720770746168,0.00827,57112.0,57110.0,0.236499]
[1720770746382,0.00827,57112.0,57111.0,0.00306353]
[1720770747877,0.00827,57112.0,57111.0,0.01006353]
[1720770748080,0.00827,57112.0,57111.0,0.01306353]
[1720770748595,0.00827,57112.0,57111.0,0.18816053]
[1720770748798,0.00827,57112.0,57111.0,0.185097]
[1720770749251,0.00827,57112.0,57111.0,0.962887]
[1720770749382,0.00827,57112.0,57111.0,1.024587]
[1720770753535,0.00827,57112.0,57111.0,1.494782]
[1720770754602,0.00827,57112.0,57111.0,1.491782]
[1720770754794,0.00827,57112.0,57111.0,1.023587]
[1720770755660,0.00827,57112.0,57111.0,1.016587]
[1720770755884,0.00827,57112.0,57111.0,1.023587]
[1720770756099,0.00827,57112.0,57111.0,1.016587]
[1720770756309,0.00827,57112.0,57111.0,0.666392]
[1720770756518,0.00827,57112.0,57111.0,1.030587]
[1720770757150,0.00827,57112.0,57111.0,1.028587]
[1720770757349,0.00827,57112.0,57111.0,1.037587]
[1720770758551,0.00827,57112.0,57111.0,1.097587]
[1720770758774,0.00827,57112.0,57111.0,1.157587]
[1720770759190,0.00827,57112.0,57111.0,1.607782]
[1720770759390,0.00827,57112.0,57111.0,2.12825488]
[1720770759795,0.00827,57112.0,57111.0,2.12519135]
[1720770759997,0.00827,57112.0,57111.0,2.11619135]
[1720770760398,0.00827,57112.0,57111.0,2.12619135]
[1720770760819,0.00827,57112.0,57111.0,2.10219135]
[1720770761025,0.00827,57112.0,57111.0,2.11619135]
[1720770761228,0.00827,57112.0,57111.0,2.13019135]
[1720770762766,0.00827,57112.0,57111.0,2.045077]
[1720770763373,0.00827,57112.0,57111.0,1.962977]
[1720770763877,0.00827,57112.0,57111.0,1.142587]
[1720770764092,0.08511435,57131.0,57111.0,1.142587]
[1720770764305,0.00826,57142.0,57140.0,0.36292745]
[1720770764306,1.23867146,57141.0,57140.0,0.36292745]
[1720770764506,1.74600817,57141.0,57140.0,0.36292745]
[1720770764755,1.76432974,57141.0,57140.0,0.36292745]
[1720770764956,1.95895628,57141.0,57140.0,0.36292745]
[1720770765700,1.69849195,57141.0,57140.0,0.36292745]
[1720770765910,2.04364737,57141.0,57140.0,0.36292745]
[1720770766386,1.97340997,57141.0,57140.0,0.36292745]
[1720770766814,1.97340997,57141.0,57140.0,0.36392745]
[1720770767224,2.00430997,57141.0,57140.0,0.36392745]
[1720770767429,2.00430997,57141.0,57140.0,0.36292745]
[1720770767784,1.92220997,57141.0,57140.0,0.36492745]